Department family,Entity,Date,Expense type,Expense area,Supplier,Transaction number,Amount,Description
Ministry of Justice,HMPPS,2/27/2017,5224102183 - EXP - PURCHASE OF GOODS/SERVICES - PURCHASE PRICE VARIANCE,10207560 - Electronic Monitoring,CAPITA BUSINESS SERVICES LTD,6003496715,4030453.55, Electronic Monitoring Services
Ministry of Justice,HMPPS,2/6/2017,5224100011 - EXP - SHORT-TERM CONTRACT & AGENCY STAFF - FULL COST - Clerical and Admin,10207830 - NPS Development and Business Change ,RED SNAPPER GROUP,POA03022017,83000,Agency Staff 
Ministry of Justice,HMPPS,2/6/2017,5224102050 - EXP - PURCHASE OF GOODS/SERVICES - OTHER - Contracted out operation of prisons,10201280 - Parc,BRIDGEND CUSTODIAL SERVICES LTD,BE17001,28253.4,Contracted-out operation of prisons and detention centres
Ministry of Justice,HMPPS,2/6/2017,5224102033 - EXP - PURCHASE OF GOODS/SERVICES - OTHER - Contracted out operation of prisons,10201280 - Parc,BRIDGEND CUSTODIAL SERVICES LTD,BE17003,5543572.46,Contracted-out operation of prisons and detention centres
Ministry of Justice,HMPPS,2/8/2017,5211102006 - EXP - PURCHASE OF GOODS/SERVICES - OTHER PROFESSIONAL SERVICES - Contracted out probation and resettlement costs,10204300 - Wales CRC,THE WALES COMMUNITY REHABILITATION COMPANY,SIN300079,2275027.02,Contracted-out Resettlement Services
Ministry of Justice,HMPPS,2/9/2017,5222300000 - EXP - PURCHASE OF GOODS/SERVICES - ICT OUTSOURCING & MAINT./SUPPORT - Other,10207780 - Digital Studio,UNILINK SOFTWARE LTD,8282,132836.63,Contracted-out Computer Services
Ministry of Justice,HMPPS,2/14/2017,5224102032 - EXP - PURCHASE OF GOODS/SERVICES - ICT OUTSOURCING & MAINT./SUPPORT - Other,10207740 - Digital Prison,IDENTITY E2E LTD,100266,247807.5,Contracted-out Computer Services
Ministry of Justice,HMPPS,2/14/2017,5211102011 - EXP - PURCHASE OF GOODS/SERVICES - OTHER - Contracted out prisoner escorts,10207550 - Prisoner Escort & Custody Service (PECS),GEO AMEY PECS LTD,10018,123069.22,Contracted-out Escorts
Ministry of Justice,HMPPS,2/14/2017,5211102011 - EXP - PURCHASE OF GOODS/SERVICES - OTHER - Contracted out prisoner escorts,10207550 - Prisoner Escort & Custody Service (PECS),GEO AMEY PECS LTD,10020,133885.08,Contracted-out Escorts
Ministry of Justice,HMPPS,2/14/2017,5211102011 - EXP - PURCHASE OF GOODS/SERVICES - OTHER - Contracted out prisoner escorts,10207550 - Prisoner Escort & Custody Service (PECS),GEO AMEY PECS LTD,10015,2411933.13,Contracted-out Escorts
Ministry of Justice,HMPPS,2/14/2017,5211102011 - EXP - PURCHASE OF GOODS/SERVICES - OTHER - Contracted out prisoner escorts,10207550 - Prisoner Escort & Custody Service (PECS),GEO AMEY PECS LTD,10014,2417094.03,Contracted-out Escorts
Ministry of Justice,HMPPS,2/14/2017,5224100011 - EXP - PURCHASE OF GOODS/SERVICES - OTHER - Contracted out prisoner escorts,10207550 - Prisoner Escort & Custody Service (PECS),GEO AMEY PECS LTD,10016,2676085.2,Contracted-out Escorts
Ministry of Justice,HMPPS,2/15/2017,5218102012 - EXP - PURCHASE OF GOODS/SERVICES - ICT OUTSOURCING & MAINT./SUPPORT - Other,10207740 - Digital Prison,ENTSERV UK LTD,6029031,35314.75,Contracted-out Computer Services
Ministry of Justice,HMPPS,2/15/2017,5211102006 - EXP - PURCHASE OF GOODS/SERVICES - OTHER PROFESSIONAL SERVICES - Contracted out probation and resettlement costs,"10204020 - Bristol, Gloucs, Somerset & Wilts CRC",THE DORSET DEVON AND CORNWALL COMMUNITY REHABILITATION COMPANY,SIN400290,56624.2,Contracted-out Resettlement Services
Ministry of Justice,HMPPS,2/15/2017,5211102006 - EXP - PURCHASE OF GOODS/SERVICES - OTHER PROFESSIONAL SERVICES - Contracted out probation and resettlement costs,"10204050 - Dorset, Devon and Cornwall CRC",THE DORSET DEVON AND CORNWALL COMMUNITY REHABILITATION COMPANY,SIN400290,1131015.43,Contracted-out Resettlement Services
Ministry of Justice,HMPPS,2/15/2017,5224102025 - EXP - PURCHASE OF GOODS/SERVICES - OTHER - Prison Shop Cost of Sales,10207060 - Retail Project Charges,DHL SUPPLY CHAIN LTD,11153042,228897.72,Prison shop run through a national contract at no cost to taxpayer�
Ministry of Justice,HMPPS,2/15/2017,5224102025 - EXP - PURCHASE OF GOODS/SERVICES - OTHER - Prison Shop Cost of Sales,10207060 - Retail Project Charges,DHL SUPPLY CHAIN LTD,11153042,426657.5,Prison shop run through a national contract at no cost to taxpayer�
Ministry of Justice,HMPPS,2/16/2017,5224102050 - EXP - PURCHASE OF GOODS/SERVICES - OTHER - Contracted out operation of prisons,10201280 - Parc,BRIDGEND CUSTODIAL SERVICES LTD,BE17008,25663.54,Contracted-out operation of prisons and detention centres
Ministry of Justice,HMPPS,2/16/2017,5224102050 - EXP - PURCHASE OF GOODS/SERVICES - OTHER - Contracted out operation of prisons,10201300 - Lowdham Grange,LOWDHAM GRANGE PRISON SERVICES LTD,2714,46735.1,Contracted-out operation of prisons and detention centres
Ministry of Justice,HMPPS,2/16/2017,5224102050 - EXP - PURCHASE OF GOODS/SERVICES - OTHER - Contracted out operation of prisons,10201300 - Lowdham Grange,LOWDHAM GRANGE PRISON SERVICES LTD,2717,57866.63,Contracted-out operation of prisons and detention centres
Ministry of Justice,HMPPS,2/16/2017,5224102030 - EXP - PURCHASE OF GOODS/SERVICES - OTHER - Contracted out operation of prisons,10201300 - Lowdham Grange,LOWDHAM GRANGE PRISON SERVICES LTD,2713,2490137.33,Contracted-out operation of prisons and detention centres
Ministry of Justice,HMPPS,2/16/2017,5224102050 - EXP - PURCHASE OF GOODS/SERVICES - OTHER - Contracted out operation of prisons,10201320 - Rye Hill,ONLEY PRISON SERVICES LTD,OP17007,51414.72,Contracted-out operation of prisons and detention centres
Ministry of Justice,HMPPS,2/16/2017,5211102005 - EXP - PURCHASE OF GOODS/SERVICES - OTHER - Contracted out operation of prisons,10201320 - Rye Hill,ONLEY PRISON SERVICES LTD,OP17001,2139351.88,Contracted-out operation of prisons and detention centres
Ministry of Justice,HMPPS,2/16/2017,5224102050 - EXP - PURCHASE OF GOODS/SERVICES - OTHER - Contracted out operation of prisons,10201210 - Ashfield,PUCKLECHURCH CUSTODIAL SERVICES LTD,5341,81456,Contracted-out operation of prisons and detention centres
Ministry of Justice,HMPPS,2/16/2017,5219702002 - EXP - PURCHASE OF GOODS/SERVICES - OTHER - Contracted out operation of prisons,10201210 - Ashfield,PUCKLECHURCH CUSTODIAL SERVICES LTD,5339,1523860.8,Contracted-out operation of prisons and detention centres
Ministry of Justice,HMPPS,2/16/2017,5211102006 - EXP - PURCHASE OF GOODS/SERVICES - OTHER PROFESSIONAL SERVICES - Contracted out probation and resettlement costs,"10204020 - Bristol, Gloucs, Somerset & Wilts CRC",THE BRISTOL GLOUCESTERSHIRE SOMERSET AND WILTSHIRE COMMUNITY REHABILITATION COMPANY,SIN200420,72631.85,Contracted-out Resettlement Services
Ministry of Justice,HMPPS,2/16/2017,5224102005 - EXP - PURCHASE OF GOODS/SERVICES - OTHER PROFESSIONAL SERVICES - Contracted out probation and resettlement costs,"10204020 - Bristol, Gloucs, Somerset & Wilts CRC",THE BRISTOL GLOUCESTERSHIRE SOMERSET AND WILTSHIRE COMMUNITY REHABILITATION COMPANY,SIN200420,1637520.43,Contracted-out Resettlement Services
Ministry of Justice,HMPPS,2/17/2017,5211102011 - EXP - PURCHASE OF GOODS/SERVICES - OTHER - Contracted out prisoner escorts,10207550 - Prisoner Escort & Custody Service (PECS),GEO AMEY PECS LTD,10019,87822.65,Contracted-out Escorts
Ministry of Justice,HMPPS,2/17/2017,5211102011 - EXP - PURCHASE OF GOODS/SERVICES - OTHER - Contracted out prisoner escorts,10207550 - Prisoner Escort & Custody Service (PECS),GEO AMEY PECS LTD,10022,177420.26,Contracted-out Escorts
Ministry of Justice,HMPPS,2/17/2017,5211102011 - EXP - PURCHASE OF GOODS/SERVICES - OTHER - Contracted out prisoner escorts,10207550 - Prisoner Escort & Custody Service (PECS),GEO AMEY PECS LTD,10021,204593.62,Contracted-out Escorts
Ministry of Justice,HMPPS,2/17/2017,5211102011 - EXP - PURCHASE OF GOODS/SERVICES - OTHER - Contracted out prisoner escorts,10207550 - Prisoner Escort & Custody Service (PECS),GEO AMEY PECS LTD,10023,237718.56,Contracted-out Escorts
Ministry of Justice,HMPPS,2/17/2017,5224102050 - EXP - PURCHASE OF GOODS/SERVICES - OTHER - Contracted out operation of prisons,10201280 - Parc,BRIDGEND CUSTODIAL SERVICES LTD,BE17007,25663.54,Contracted-out operation of prisons and detention centres
Ministry of Justice,HMPPS,2/17/2017,5211102006 - EXP - PURCHASE OF GOODS/SERVICES - OTHER PROFESSIONAL SERVICES - Contracted out probation and resettlement costs,10204120 - Merseyside CRC,THE MERSEYSIDE COMMUNITY REHABILITATION COMPANY,MCRC2014D342,81181.51,Contracted-out Resettlement Services
Ministry of Justice,HMPPS,2/17/2017,5211102006 - EXP - PURCHASE OF GOODS/SERVICES - OTHER PROFESSIONAL SERVICES - Contracted out probation and resettlement costs,10204120 - Merseyside CRC,THE MERSEYSIDE COMMUNITY REHABILITATION COMPANY,MCRC2014D342,1334633.04,Contracted-out Resettlement Services
Ministry of Justice,HMPPS,2/17/2017,5224102148 - EXP - PURCHASE OF GOODS/SERVICES - OTHER - Translation / Interpreting Services,10207020 - Director PSP Front Line Centrally Managed,THEBIGWORD INTERPRETING SERVICES LTD,17,25546.63,Translation Services
Ministry of Justice,HMPPS,2/20/2017,5224102019 - EXP - MISCELLANEOUS EXPENDITURE - Probation - Approved Premises,10207810 - Director of National Probation Service,WEST LONDON MISSION REF KATHERINE HUGHES HOUSE,232,56060,Contracted-out Resettlement Services
Ministry of Justice,HMPPS,2/20/2017,5224102030 - EXP - PURCHASE OF GOODS/SERVICES - OTHER - Raw Materials - Commercial - External Market,10207650 - PSP Industries HQ Manufacturing,CARPENTER LTD,91880512,27774.72,Mattresses for prisoners' beds
Ministry of Justice,HMPPS,2/20/2017,5224102030 - EXP - PURCHASE OF GOODS/SERVICES - OTHER - Raw Materials - Commercial - External Market,10207650 - PSP Industries HQ Manufacturing,CARPENTER LTD,91880512,27895.68,Mattresses for prisoners' beds
Ministry of Justice,HMPPS,2/20/2017,5224102183 - EXP - PURCHASE OF GOODS/SERVICES - OTHER - Prisoner Training,10200090 - Buckley Hall,KONICA MINOLTA BUSINESS SOLUTIONS (UK) LTD,1129325985,62593.16,Training materials used in prisoner training courses
Ministry of Justice,HMPPS,2/21/2017,5224102050 - EXP - PURCHASE OF GOODS/SERVICES - OTHER - Contracted out operation of prisons,10201250 - Forest Bank,AGECROFT PRISON MANAGEMENT LTD,9051102804,163168.13,Contracted-out operation of prisons and detention centres
Ministry of Justice,HMPPS,2/21/2017,5224102050 - EXP - PURCHASE OF GOODS/SERVICES - OTHER - Contracted out operation of prisons,10201300 - Lowdham Grange,LOWDHAM GRANGE PRISON SERVICES LTD,2716,51806.21,Contracted-out operation of prisons and detention centres
Ministry of Justice,HMPPS,2/21/2017,5224102050 - EXP - PURCHASE OF GOODS/SERVICES - OTHER - Contracted out operation of prisons,10201240 - Dovegate,MORETON PRISON SERVICES LTD,4918,32074.97,Contracted-out operation of prisons and detention centres
Ministry of Justice,HMPPS,2/21/2017,5224102050 - EXP - PURCHASE OF GOODS/SERVICES - OTHER - Contracted out operation of prisons,10201240 - Dovegate,MORETON PRISON SERVICES LTD,4914,38502,Contracted-out operation of prisons and detention centres
Ministry of Justice,HMPPS,2/21/2017,5224102050 - EXP - PURCHASE OF GOODS/SERVICES - OTHER - Contracted out operation of prisons,10201240 - Dovegate,MORETON PRISON SERVICES LTD,4915,41068.8,Contracted-out operation of prisons and detention centres
Ministry of Justice,HMPPS,2/21/2017,5224102050 - EXP - PURCHASE OF GOODS/SERVICES - OTHER - Contracted out operation of prisons,10201240 - Dovegate,MORETON PRISON SERVICES LTD,4917,88374.8,Contracted-out operation of prisons and detention centres
Ministry of Justice,HMPPS,2/21/2017,5224102050 - EXP - PURCHASE OF GOODS/SERVICES - OTHER - Contracted out operation of prisons,10201240 - Dovegate,MORETON PRISON SERVICES LTD,4913,842279.74,Contracted-out operation of prisons and detention centres
Ministry of Justice,HMPPS,2/21/2017,5913102064 - EXP - PURCHASE OF GOODS/SERVICES - OTHER - Contracted out operation of prisons,10201240 - Dovegate,MORETON PRISON SERVICES LTD,4912,3111560.93,Contracted-out operation of prisons and detention centres
Ministry of Justice,HMPPS,2/21/2017,5913102062 - EXP - MISCELLANEOUS EXPENDITURE - Probation - Approved Premises,10207810 - Director of National Probation Service,ST JOHN'S APPROVED PREMISES,42705,55375.33,Contracted-out Resettlement Services
Ministry of Justice,HMPPS,2/21/2017,5211102006 - EXP - PURCHASE OF GOODS/SERVICES - OTHER PROFESSIONAL SERVICES - Contracted out probation and resettlement costs,"10204040 - Derbyshire, Notts, Leics & Rutland CRC",THE DERBYSHIRE LEICESTERSHIRE NOTTINGHAMSHIRE AND RUTLAND COMMUNITY REHABILITATION COMPANY,648,104343,Contracted-out Resettlement Services
Ministry of Justice,HMPPS,2/21/2017,5218102012 - EXP - PURCHASE OF GOODS/SERVICES - OTHER PROFESSIONAL SERVICES - Contracted out probation and resettlement costs,"10204040 - Derbyshire, Notts, Leics & Rutland CRC",THE DERBYSHIRE LEICESTERSHIRE NOTTINGHAMSHIRE AND RUTLAND COMMUNITY REHABILITATION COMPANY,648,2423864.51,Contracted-out Resettlement Services
Ministry of Justice,HMPPS,2/21/2017,5211102006 - EXP - PURCHASE OF GOODS/SERVICES - OTHER PROFESSIONAL SERVICES - Contracted out probation and resettlement costs,"10204090 - Humberside, Lincs & North Yorks CRC",THE HUMBERSIDE LINCOLNSHIRE AND NORTH YORKSHIRE COMMUNITY REHABILITATION COMPANY,2017/01,52169.1,Contracted-out Resettlement Services
Ministry of Justice,HMPPS,2/21/2017,5211102006 - EXP - PURCHASE OF GOODS/SERVICES - OTHER PROFESSIONAL SERVICES - Contracted out probation and resettlement costs,"10204090 - Humberside, Lincs & North Yorks CRC",THE HUMBERSIDE LINCOLNSHIRE AND NORTH YORKSHIRE COMMUNITY REHABILITATION COMPANY,2017/01,1534201.27,Contracted-out Resettlement Services
Ministry of Justice,HMPPS,2/21/2017,5211102006 - EXP - PURCHASE OF GOODS/SERVICES - OTHER PROFESSIONAL SERVICES - Contracted out probation and resettlement costs,10204160 - Staffordshire and West Midlands CRC,THE STAFFORDSHIRE AND WEST MIDLANDS COMMUNITY REHABILITATION COMPANY,SI10470,161631.54,Contracted-out Resettlement Services
Ministry of Justice,HMPPS,2/21/2017,5224102019 - EXP - PURCHASE OF GOODS/SERVICES - OTHER PROFESSIONAL SERVICES - Contracted out probation and resettlement costs,10204160 - Staffordshire and West Midlands CRC,THE STAFFORDSHIRE AND WEST MIDLANDS COMMUNITY REHABILITATION COMPANY,SI10470,3343671.97,Contracted-out Resettlement Services
Ministry of Justice,HMPPS,2/21/2017,5211102006 - EXP - PURCHASE OF GOODS/SERVICES - OTHER PROFESSIONAL SERVICES - Contracted out probation and resettlement costs,10204190 - Warwickshire and West Mercia CRC,THE WARWICKSHIRE AND WEST MERCIA COMMUNITY REHABILITATION COMPANY,SI-104439,56859.19,Contracted-out Resettlement Services
Ministry of Justice,HMPPS,2/21/2017,5224102148 - EXP - PURCHASE OF GOODS/SERVICES - OTHER PROFESSIONAL SERVICES - Contracted out probation and resettlement costs,10204190 - Warwickshire and West Mercia CRC,THE WARWICKSHIRE AND WEST MERCIA COMMUNITY REHABILITATION COMPANY,SI-104439,1164560.81,Contracted-out Resettlement Services
Ministry of Justice,HMPPS,2/22/2017,5224102050 - EXP - PURCHASE OF GOODS/SERVICES - OTHER - Contracted out operation of prisons,10201200 - Altcourse,FAZAKERLEY PRISON SERVICES LTD,FP17009,46606.3,Contracted-out operation of prisons and detention centres
Ministry of Justice,HMPPS,2/22/2017,5224102050 - EXP - PURCHASE OF GOODS/SERVICES - OTHER - Contracted out operation of prisons,10201200 - Altcourse,FAZAKERLEY PRISON SERVICES LTD,FP17003,52882.18,Contracted-out operation of prisons and detention centres
Ministry of Justice,HMPPS,2/22/2017,5224102050 - EXP - PURCHASE OF GOODS/SERVICES - OTHER - Contracted out operation of prisons,10201200 - Altcourse,FAZAKERLEY PRISON SERVICES LTD,FP17007,355222.8,Contracted-out operation of prisons and detention centres
Ministry of Justice,HMPPS,2/22/2017,2617902093 - EXP - PURCHASE OF GOODS/SERVICES - OTHER - Contracted out operation of prisons,10201200 - Altcourse,FAZAKERLEY PRISON SERVICES LTD,FP17006,4865162.3,Contracted-out operation of prisons and detention centres
Ministry of Justice,HMPPS,2/22/2017,5211102006 - EXP - PURCHASE OF GOODS/SERVICES - OTHER PROFESSIONAL SERVICES - Contracted out probation and resettlement costs,10204080 - Hampshire and Isle of Wight CRC,THE HAMPSHIRE AND ISLE OF WIGHT COMMUNITY REHABILITATION COMPANY,2000001648,47051.89,Contracted-out Resettlement Services
Ministry of Justice,HMPPS,2/22/2017,5211102009 - EXP - PURCHASE OF GOODS/SERVICES - OTHER PROFESSIONAL SERVICES - Contracted out probation and resettlement costs,10204080 - Hampshire and Isle of Wight CRC,THE HAMPSHIRE AND ISLE OF WIGHT COMMUNITY REHABILITATION COMPANY,2000001648,1315624.31,Contracted-out Resettlement Services
Ministry of Justice,HMPPS,2/22/2017,5224102030 - EXP - PURCHASE OF GOODS/SERVICES - OTHER - Raw Materials - Commercial - External Market,10207650 - PSP Industries HQ Manufacturing,CARPENTER LTD,91877800,27895.68,Mattresses for prisoners' beds
Ministry of Justice,HMPPS,2/22/2017,5224102005 - PPE - PLANT & MACHINERY (OWNED) - COST - ADDITIONS,10208080 - Estates Contract Management,CITROEN COVENTRY,27622,53763,Plant and Machinery - Acquisitions
Ministry of Justice,HMPPS,2/22/2017,5222300000 - EXP - PURCHASE OF GOODS/SERVICES - WATER,10200660 - Liverpool,UNITED UTILITIES WATER PLC,UU-INV02203283,38003.08,Water and Sewage Charges
Ministry of Justice,HMPPS,2/23/2017,5224102050 - EXP - PURCHASE OF GOODS/SERVICES - OTHER - Contracted out operation of prisons,10201250 - Forest Bank,AGECROFT PRISON MANAGEMENT LTD,9051102805,95912.42,Contracted-out operation of prisons and detention centres
Ministry of Justice,HMPPS,2/23/2017,5215102008 - EXP - PURCHASE OF GOODS/SERVICES - OTHER - Contracted out operation of prisons,10201250 - Forest Bank,AGECROFT PRISON MANAGEMENT LTD,9051102803,3825381.89,Contracted-out operation of prisons and detention centres
Ministry of Justice,HMPPS,2/23/2017,5224102050 - EXP - PURCHASE OF GOODS/SERVICES - OTHER - Contracted out operation of prisons,10201200 - Altcourse,FAZAKERLEY PRISON SERVICES LTD,FP17016,81910.2,Contracted-out operation of prisons and detention centres
Ministry of Justice,HMPPS,2/23/2017,5224102050 - EXP - PURCHASE OF GOODS/SERVICES - OTHER - Contracted out operation of prisons,10201200 - Altcourse,FAZAKERLEY PRISON SERVICES LTD,FP17017,84267.3,Contracted-out operation of prisons and detention centres
Ministry of Justice,HMPPS,2/23/2017,5211102006 - EXP - PURCHASE OF GOODS/SERVICES - OTHER PROFESSIONAL SERVICES - Contracted out probation and resettlement costs,"10204100 - Kent, Surrey and Sussex CRC",THE KENT SURREY AND SUSSEX COMMUNITY REHABILITATION COMPANY,1800000122,109909.16,Contracted-out Resettlement Services
Ministry of Justice,HMPPS,2/23/2017,5211102006 - EXP - PURCHASE OF GOODS/SERVICES - OTHER PROFESSIONAL SERVICES - Contracted out probation and resettlement costs,"10204100 - Kent, Surrey and Sussex CRC",THE KENT SURREY AND SUSSEX COMMUNITY REHABILITATION COMPANY,1800000122,4470234.49,Contracted-out Resettlement Services
Ministry of Justice,HMPPS,2/23/2017,5215102047 - EXP - PURCHASE OF GOODS/SERVICES - ACCOMMODATION & BLDNG MANAGEMENT - Ad-Hoc Major Maintenance and New Work - more than 10k,10208080 - Estates Contract Management,AMEY COMMUNITY LIMITED,90583869,34317.05,Maintenance work
Ministry of Justice,HMPPS,2/23/2017,5215102051 - EXP - PURCHASE OF GOODS/SERVICES - ACCOMMODATION & BLDNG MANAGEMENT - Ad-Hoc Major Maintenance and New Work - more than 10k,10208080 - Estates Contract Management,AMEY COMMUNITY LIMITED,90583870,46536.23,Maintenance work
Ministry of Justice,HMPPS,2/23/2017,5224102194 - EXP - PURCHASE OF GOODS/SERVICES - ACCOMMODATION & BLDNG MANAGEMENT - FM - Hard Fixed Costs,10208080 - Estates Contract Management,MITIE FACILITIES SERVICES LTD,44083/91376909,25627.52,Maintenance work
Ministry of Justice,HMPPS,2/24/2017,5913102062 - EXP - MISCELLANEOUS EXPENDITURE - Compensation - Adverse legal costs,10200910 - Stocken,GOVERNMENT LEGAL DEPARTMENT,Z1309837,30000,Prisoner Compensation
Ministry of Justice,HMPPS,2/24/2017,5913102040 - EXP - MISCELLANEOUS EXPENDITURE - Compensation - Adverse legal costs,10200940 - Sudbury,GOVERNMENT LEGAL DEPARTMENT,Z1301803,55000,Prisoner Compensation
Ministry of Justice,HMPPS,2/24/2017,5913102062 - EXP - MISCELLANEOUS EXPENDITURE - Compensation payments - prisoner,10200300 - Ford,GOVERNMENT LEGAL DEPARTMENT,Z1427699,70000,Prisoner Compensation
Ministry of Justice,HMPPS,2/26/2017,5224102194 - EXP - PURCHASE OF GOODS/SERVICES - OTHER  - Contracted-out Catering,10200520 - Isis,MITIE FACILITIES SERVICES LTD,44083/91376918,28049.73,Contracted-out Catering Services
Ministry of Justice,HMPPS,2/26/2017,5215102008 - EXP - PURCHASE OF GOODS/SERVICES - OTHER  - Contracted-out Catering,10200080 - Brixton,MITIE FACILITIES SERVICES LTD,44083/91376908,30626.44,Contracted-out Catering Services
Ministry of Justice,HMPPS,2/26/2017,5218200001 - EXP - PURCHASE OF GOODS/SERVICES - ICT OUTSOURCING & MAINT./SUPPORT - Other,10207740 - Digital Prison,ENTSERV UK LTD,6029066,170096.99,Contracted-out Computer Services
Ministry of Justice,HMPPS,2/26/2017,5224102192 - EXP - PURCHASE OF GOODS/SERVICES - OTHER  - Resettlement,10207320 - NOMS CFO Round 3,IXION HOLDINGS (CONTRACTS) LTD,1765,33611.3,Contracted-out Resettlement Services
Ministry of Justice,HMPPS,2/26/2017,5224102192 - EXP - PURCHASE OF GOODS/SERVICES - OTHER  - Resettlement,10207320 - NOMS CFO Round 3,IXION HOLDINGS (CONTRACTS) LTD,1765,115778.4,Contracted-out Resettlement Services
Ministry of Justice,HMPPS,2/26/2017,5224102032 - EXP - PURCHASE OF GOODS/SERVICES - OTHER  - Resettlement,10207320 - NOMS CFO Round 3,IXION HOLDINGS (CONTRACTS) LTD,1765,162702.85,Contracted-out Resettlement Services
Ministry of Justice,HMPPS,2/26/2017,5211102006 - EXP - PURCHASE OF GOODS/SERVICES - OTHER PROFESSIONAL SERVICES - Contracted out probation and resettlement costs,"10204010 - Beds, Cambs, Herts and Northants CRC",THE BEDFORDSHIRE CAMBRIDGESHIRE HERTFORDSHIRE AND NORTHAMPTONSHIRE COMMUNITY REHABILITATION COMPANY,9900304421,67162.1,Contracted-out Resettlement Services
Ministry of Justice,HMPPS,2/26/2017,5211102006 - EXP - PURCHASE OF GOODS/SERVICES - OTHER PROFESSIONAL SERVICES - Contracted out probation and resettlement costs,"10204010 - Beds, Cambs, Herts and Northants CRC",THE BEDFORDSHIRE CAMBRIDGESHIRE HERTFORDSHIRE AND NORTHAMPTONSHIRE COMMUNITY REHABILITATION COMPANY,9900304421,67162.1,Contracted-out Resettlement Services
Ministry of Justice,HMPPS,2/26/2017,5211102006 - EXP - PURCHASE OF GOODS/SERVICES - OTHER PROFESSIONAL SERVICES - Contracted out probation and resettlement costs,"10204010 - Beds, Cambs, Herts and Northants CRC",THE BEDFORDSHIRE CAMBRIDGESHIRE HERTFORDSHIRE AND NORTHAMPTONSHIRE COMMUNITY REHABILITATION COMPANY,9900304421,1714904.24,Contracted-out Resettlement Services
Ministry of Justice,HMPPS,2/26/2017,5211102006 - EXP - PURCHASE OF GOODS/SERVICES - OTHER PROFESSIONAL SERVICES - Contracted out probation and resettlement costs,"10204010 - Beds, Cambs, Herts and Northants CRC",THE BEDFORDSHIRE CAMBRIDGESHIRE HERTFORDSHIRE AND NORTHAMPTONSHIRE COMMUNITY REHABILITATION COMPANY,9900304421,1714904.24,Contracted-out Resettlement Services
Ministry of Justice,HMPPS,2/26/2017,5211102006 - EXP - PURCHASE OF GOODS/SERVICES - OTHER PROFESSIONAL SERVICES - Contracted out probation and resettlement costs,10204030 - Cheshire and Greater Manchester CRC,THE CHESHIRE AND GREATER MANCHESTER COMMUNITY REHABILITATION COMPANY,507,171739.8,Contracted-out Resettlement Services
Ministry of Justice,HMPPS,2/26/2017,5211102006 - EXP - PURCHASE OF GOODS/SERVICES - OTHER PROFESSIONAL SERVICES - Contracted out probation and resettlement costs,10204030 - Cheshire and Greater Manchester CRC,THE CHESHIRE AND GREATER MANCHESTER COMMUNITY REHABILITATION COMPANY,507,171739.8,Contracted-out Resettlement Services
Ministry of Justice,HMPPS,2/26/2017,5224102006 - EXP - PURCHASE OF GOODS/SERVICES - OTHER PROFESSIONAL SERVICES - Contracted out probation and resettlement costs,10204030 - Cheshire and Greater Manchester CRC,THE CHESHIRE AND GREATER MANCHESTER COMMUNITY REHABILITATION COMPANY,507,2549897.7,Contracted-out Resettlement Services
Ministry of Justice,HMPPS,2/26/2017,5211102006 - EXP - PURCHASE OF GOODS/SERVICES - OTHER PROFESSIONAL SERVICES - Contracted out probation and resettlement costs,10204180 - Cumbria and Lancashire CRC,THE CUMBRIA AND LANCASHIRE COMMUNITY REHABILITATION COMPANY,9900304417,83908.5,Contracted-out Resettlement Services
Ministry of Justice,HMPPS,2/26/2017,5211102006 - EXP - PURCHASE OF GOODS/SERVICES - OTHER PROFESSIONAL SERVICES - Contracted out probation and resettlement costs,10204180 - Cumbria and Lancashire CRC,THE CUMBRIA AND LANCASHIRE COMMUNITY REHABILITATION COMPANY,9900304417,1437213.1,Contracted-out Resettlement Services
Ministry of Justice,HMPPS,2/26/2017,5211102006 - EXP - PURCHASE OF GOODS/SERVICES - OTHER PROFESSIONAL SERVICES - Contracted out probation and resettlement costs,10204060 - Durham and Tees Valley CRC,THE DURHAM TEES VALLEY COMMUNITY REHABILITATION COMPANY,CRC1149,35839.85,Contracted-out Resettlement Services
Ministry of Justice,HMPPS,2/26/2017,5211102006 - EXP - PURCHASE OF GOODS/SERVICES - OTHER PROFESSIONAL SERVICES - Contracted out probation and resettlement costs,10204060 - Durham and Tees Valley CRC,THE DURHAM TEES VALLEY COMMUNITY REHABILITATION COMPANY,CRC1149,103919.4,Contracted-out Resettlement Services
Ministry of Justice,HMPPS,2/26/2017,5211102006 - EXP - PURCHASE OF GOODS/SERVICES - OTHER PROFESSIONAL SERVICES - Contracted out probation and resettlement costs,10204060 - Durham and Tees Valley CRC,THE DURHAM TEES VALLEY COMMUNITY REHABILITATION COMPANY,CRC1149,3354078.75,Contracted-out Resettlement Services
Ministry of Justice,HMPPS,2/26/2017,5211102006 - EXP - PURCHASE OF GOODS/SERVICES - OTHER PROFESSIONAL SERVICES - Contracted out probation and resettlement costs,10204070 - Essex CRC,THE ESSEX COMMUNITY REHABILITATION COMPANY,9900304420,41937.4,Contracted-out Resettlement Services
Ministry of Justice,HMPPS,2/26/2017,5211102006 - EXP - PURCHASE OF GOODS/SERVICES - OTHER PROFESSIONAL SERVICES - Contracted out probation and resettlement costs,10204070 - Essex CRC,THE ESSEX COMMUNITY REHABILITATION COMPANY,9900304420,41937.4,Contracted-out Resettlement Services
Ministry of Justice,HMPPS,2/26/2017,5211102006 - EXP - PURCHASE OF GOODS/SERVICES - OTHER PROFESSIONAL SERVICES - Contracted out probation and resettlement costs,10204070 - Essex CRC,THE ESSEX COMMUNITY REHABILITATION COMPANY,9900304420,1103663.76,Contracted-out Resettlement Services
Ministry of Justice,HMPPS,2/26/2017,5211102006 - EXP - PURCHASE OF GOODS/SERVICES - OTHER PROFESSIONAL SERVICES - Contracted out probation and resettlement costs,10204070 - Essex CRC,THE ESSEX COMMUNITY REHABILITATION COMPANY,9900304420,1103663.76,Contracted-out Resettlement Services
Ministry of Justice,HMPPS,2/26/2017,5211102006 - EXP - PURCHASE OF GOODS/SERVICES - OTHER PROFESSIONAL SERVICES - Contracted out probation and resettlement costs,10204130 - Norfolk and Suffolk CRC,THE NORFOLK AND SUFFOLK COMMUNITY REHABILITATION COMPANY,9900304419,64504.71,Contracted-out Resettlement Services
Ministry of Justice,HMPPS,2/26/2017,5211102006 - EXP - PURCHASE OF GOODS/SERVICES - OTHER PROFESSIONAL SERVICES - Contracted out probation and resettlement costs,10204130 - Norfolk and Suffolk CRC,THE NORFOLK AND SUFFOLK COMMUNITY REHABILITATION COMPANY,9900304419,64504.7,Contracted-out Resettlement Services
Ministry of Justice,HMPPS,2/26/2017,5211102006 - EXP - PURCHASE OF GOODS/SERVICES - OTHER PROFESSIONAL SERVICES - Contracted out probation and resettlement costs,10204130 - Norfolk and Suffolk CRC,THE NORFOLK AND SUFFOLK COMMUNITY REHABILITATION COMPANY,9900304419,1794777.89,Contracted-out Resettlement Services
Ministry of Justice,HMPPS,2/26/2017,5211102006 - EXP - PURCHASE OF GOODS/SERVICES - OTHER PROFESSIONAL SERVICES - Contracted out probation and resettlement costs,10204140 - Northumbria CRC,THE NORTHUMBRIA COMMUNITY REHABILITATION COMPANY LTD,9900304418,100820.79,Contracted-out Resettlement Services
Ministry of Justice,HMPPS,2/26/2017,5211102006 - EXP - PURCHASE OF GOODS/SERVICES - OTHER PROFESSIONAL SERVICES - Contracted out probation and resettlement costs,10204140 - Northumbria CRC,THE NORTHUMBRIA COMMUNITY REHABILITATION COMPANY LTD,9900304418,100820.8,Contracted-out Resettlement Services
Ministry of Justice,HMPPS,2/26/2017,5211102006 - EXP - PURCHASE OF GOODS/SERVICES - OTHER PROFESSIONAL SERVICES - Contracted out probation and resettlement costs,10204140 - Northumbria CRC,THE NORTHUMBRIA COMMUNITY REHABILITATION COMPANY LTD,9900304418,1136711.56,Contracted-out Resettlement Services
Ministry of Justice,HMPPS,2/26/2017,5117102005 - EXP - PURCHASE OF GOODS/SERVICES - OTHER PROFESSIONAL SERVICES - Contracted out probation and resettlement costs,10204140 - Northumbria CRC,THE NORTHUMBRIA COMMUNITY REHABILITATION COMPANY LTD,9900304418,2071781.53,Contracted-out Resettlement Services
Ministry of Justice,HMPPS,2/26/2017,5211102006 - EXP - PURCHASE OF GOODS/SERVICES - OTHER PROFESSIONAL SERVICES - Contracted out probation and resettlement costs,10204150 - South Yorkshire CRC,THE SOUTH YORKSHIRE COMMUNITY REHABILITATION COMPANY,9900304422,71167.3,Contracted-out Resettlement Services
Ministry of Justice,HMPPS,2/26/2017,5211102006 - EXP - PURCHASE OF GOODS/SERVICES - OTHER PROFESSIONAL SERVICES - Contracted out probation and resettlement costs,10204150 - South Yorkshire CRC,THE SOUTH YORKSHIRE COMMUNITY REHABILITATION COMPANY,9900304422,71167.3,Contracted-out Resettlement Services
Ministry of Justice,HMPPS,2/26/2017,5211102006 - EXP - PURCHASE OF GOODS/SERVICES - OTHER PROFESSIONAL SERVICES - Contracted out probation and resettlement costs,10204150 - South Yorkshire CRC,THE SOUTH YORKSHIRE COMMUNITY REHABILITATION COMPANY,9900304422,1111058.22,Contracted-out Resettlement Services
Ministry of Justice,HMPPS,2/26/2017,5211102006 - EXP - PURCHASE OF GOODS/SERVICES - OTHER PROFESSIONAL SERVICES - Contracted out probation and resettlement costs,10204170 - Thames Valley CRC,THE THAMES VALLEY COMMUNITY REHABILITATION COMPANY,1800000150/2017,125021.33,Contracted-out Resettlement Services
Ministry of Justice,HMPPS,2/26/2017,5211102006 - EXP - PURCHASE OF GOODS/SERVICES - OTHER PROFESSIONAL SERVICES - Contracted out probation and resettlement costs,10204170 - Thames Valley CRC,THE THAMES VALLEY COMMUNITY REHABILITATION COMPANY,1800000150/2017,235072.11,Contracted-out Resettlement Services
Ministry of Justice,HMPPS,2/26/2017,5224102030 - EXP - PURCHASE OF GOODS/SERVICES - OTHER PROFESSIONAL SERVICES - Contracted out probation and resettlement costs,10204170 - Thames Valley CRC,THE THAMES VALLEY COMMUNITY REHABILITATION COMPANY,1800000150/2017,2731105.76,Contracted-out Resettlement Services
Ministry of Justice,HMPPS,2/26/2017,5215102051 - EXP - PURCHASE OF GOODS/SERVICES - ACCOMMODATION & BLDNG MANAGEMENT - Ad-Hoc Major Maintenance and New Work - more than 10k,10208080 - Estates Contract Management,AMEY COMMUNITY LIMITED,90584318,26732.28,Maintenance work
Ministry of Justice,HMPPS,2/26/2017,1171202003 - EXP - PURCHASE OF GOODS/SERVICES - ACCOMMODATION & BLDNG MANAGEMENT - FM - Buildings related Emergency Action - more than 5k,10208080 - Estates Contract Management,AMEY COMMUNITY LIMITED,90584319,36916.06,Maintenance work
Ministry of Justice,HMPPS,2/26/2017,5215102051 - PPE - POA & AUC (OWNED) - COST - ADDITIONS,10208080 - Estates Contract Management,AMEY COMMUNITY LIMITED,90584315,37265.1,Maintenance work
Ministry of Justice,HMPPS,2/26/2017,5215102051 - EXP - PURCHASE OF GOODS/SERVICES - ACCOMMODATION & BLDNG MANAGEMENT - Ad-Hoc Major Maintenance and New Work - more than 10k,10208080 - Estates Contract Management,AMEY COMMUNITY LIMITED,90584360,48532.21,Maintenance work
Ministry of Justice,HMPPS,2/26/2017,5215102051 - EXP - PURCHASE OF GOODS/SERVICES - ACCOMMODATION & BLDNG MANAGEMENT - Ad-Hoc Major Maintenance and New Work - more than 10k,10208080 - Estates Contract Management,AMEY COMMUNITY LIMITED,90584316,78216.77,Maintenance work
Ministry of Justice,HMPPS,2/26/2017,5215102051 - EXP - PURCHASE OF GOODS/SERVICES - ACCOMMODATION & BLDNG MANAGEMENT - Ad-Hoc Major Maintenance and New Work - more than 10k,10208080 - Estates Contract Management,AMEY COMMUNITY LIMITED,90584329,102627.84,Maintenance work
Ministry of Justice,HMPPS,2/26/2017,5224102025 - EXP - PURCHASE OF GOODS/SERVICES - ACCOMMODATION & BLDNG MANAGEMENT - Ad-Hoc Major Maintenance and New Work - more than 10k,10208080 - Estates Contract Management,AMEY COMMUNITY LIMITED,90584283,128538,Maintenance work
Ministry of Justice,HMPPS,2/26/2017,5215102016 - EXP - PURCHASE OF GOODS/SERVICES - ACCOMMODATION & BLDNG MANAGEMENT - Mechanical & Electrical Repair and Maintenance,10200520 - Isis,MITIE FACILITIES SERVICES LTD,44083/91376910,32599.73,Maintenance work
Ministry of Justice,HMPPS,2/26/2017,5224100011 - EXP - PURCHASE OF GOODS/SERVICES - OTHER - Raw Materials - Commercial - External Market,10207650 - PSP Industries HQ Manufacturing,CARPENTER LTD,91882979,55791.36,Mattresses for prisoners' beds
Ministry of Justice,HMPPS,2/26/2017,5224102025 - EXP - PURCHASE OF GOODS/SERVICES - OTHER  - Prison Shop,10207060 - Retail Project Charges,DHL SUPPLY CHAIN LTD,11155268,71595.92,Prison shop run through a national contract at no cost to taxpayer�
Ministry of Justice,HMPPS,2/26/2017,5224102025 - EXP - PURCHASE OF GOODS/SERVICES - OTHER - Prison Shop Cost of Sales,10207060 - Retail Project Charges,DHL SUPPLY CHAIN LTD,11154554,216382.12,Prison shop run through a national contract at no cost to taxpayer�
Ministry of Justice,HMPPS,2/26/2017,5224102025 - EXP - PURCHASE OF GOODS/SERVICES - OTHER - Prison Shop Cost of Sales,10207060 - Retail Project Charges,DHL SUPPLY CHAIN LTD,11154554,383677.94,Prison shop run through a national contract at no cost to taxpayer�
Ministry of Justice,HMPPS,2/26/2017,5217100004 - EXP - PURCHASE OF GOODS/SERVICES - OTHER  - Prison Shop,10207060 - Retail Project Charges,DHL SUPPLY CHAIN LTD,11155261,1503135.98,Prison shop run through a national contract at no cost to taxpayer�
Ministry of Justice,HMPPS,2/26/2017,5215102016 - EXP - PURCHASE OF GOODS/SERVICES - ACCOMMODATION & BLDNG MANAGEMENT - Professional works advice/services,10200520 - Isis,MITIE FACILITIES SERVICES LTD,44083/91376910,39428.01,Professional works advice / services
Ministry of Justice,HMPPS,2/26/2017,5811300000 - Raw Materials - Soft Charged - Internal Market ,10207190 - PSP Industries HQ Staff,JLA LTD,OP/I984507,26273.52,Raw materials for prison industries
Ministry of Justice,HMPPS,2/26/2017,5224102187 - EXP - PURCHASE OF GOODS/SERVICES - WATER,10200850 - Rochester,SOUTHERN WATER SERVICES LTD,70110135159,27180.82,Water and Sewage charges
Ministry of Justice,HMPPS,2/26/2017,5222300000 - EXP - PURCHASE OF GOODS/SERVICES - WATER,10201150 - Wymott,UNITED UTILITIES WATER PLC,UU-INV02203259,30410.25,Water and Sewage Charges
Ministry of Justice,HMPPS,2/26/2017,5222300000 - EXP - PURCHASE OF GOODS/SERVICES - WATER,10201010 - Thorn Cross,UNITED UTILITIES WATER PLC,UU-INV02222473,40234.2,Water and Sewage Charges
Ministry of Justice,HMPPS,2/26/2017,5224102015 - EXP - PURCHASE OF GOODS/SERVICES - WATER,10200840 - Risley,UNITED UTILITIES WATER PLC,UU-INV02203368,53362.9,Water and Sewage Charges
Ministry of Justice,HMPPS,2/27/2017,5222300000 - EXP - PURCHASE OF GOODS/SERVICES - ICT OUTSOURCING & MAINT./SUPPORT - Other,10209010 - Application Support Team,SOLIRIUS CONSULTING LTD,494-SPGSUP1-002,36401,Contracted-out Computer Services
Ministry of Justice,HMPPS,2/27/2017,1816500002 - EXP - PURCHASE OF GOODS/SERVICES - OTHER - Contracted out operation of prisons,10201330 - Thameside,BWP PROJECT SERVICES LTD,90035613,3601067.69,Contracted-out operation of prisons and detention centres
Ministry of Justice,HMPPS,2/27/2017,5211102006 - EXP - PURCHASE OF GOODS/SERVICES - OTHER PROFESSIONAL SERVICES - Contracted out probation and resettlement costs,10204110 - London CRC,THE LONDON COMMUNITY REHABILITATION COMPANY,1800000298/2017,313947.7,Contracted-out Resettlement Services
Ministry of Justice,HMPPS,2/27/2017,5211102006 - EXP - PURCHASE OF GOODS/SERVICES - OTHER PROFESSIONAL SERVICES - Contracted out probation and resettlement costs,10204110 - London CRC,THE LONDON COMMUNITY REHABILITATION COMPANY,1800000298/2017,757472.78,Contracted-out Resettlement Services
Ministry of Justice,HMPPS,2/27/2017,5215202004 - EXP - PURCHASE OF GOODS/SERVICES - OTHER PROFESSIONAL SERVICES - Contracted out probation and resettlement costs,10204110 - London CRC,THE LONDON COMMUNITY REHABILITATION COMPANY,1800000298/2017,6944847.25,Contracted-out Resettlement Services
Ministry of Justice,HMPPS,2/27/2017,5913102062 - EXP - MISCELLANEOUS EXPENDITURE - Compensation - Adverse legal costs,10207820 - HQ Operational Business Support,GOVERNMENT LEGAL DEPARTMENT,Z1307466,65000,Prisoner Compensation
Ministry of Justice,HMPPS,2/27/2017,5224102015 - EXP - MISCELLANEOUS EXPENDITURE - Compensation payments - prisoner,10207020 - Director PSP Front Line Centrally Managed,GOVERNMENT LEGAL DEPARTMENT,Q101505C,122000,Prisoner Compensation
Ministry of Justice,HMPPS,2/27/2017,5211102009 - EXP - PURCHASE OF GOODS/SERVICES - OTHER - Contracted-out Other,10200930 - Styal,ACTION FOR CHILDREN SERVICES LTD,R81IN2/00006657,26786.61,Resetlement and community services 
Ministry of Justice,HMPPS,2/27/2017,5211300000 - EXP - PURCHASE OF GOODS/SERVICES - OTHER - Contracted-out Other,10200930 - Styal,ACTION FOR CHILDREN SERVICES LTD,R81IN2/00006660,26786.61,Resetlement and community services 
Ministry of Justice,HMPPS,2/27/2017,5215102008 - EXP - PURCHASE OF GOODS/SERVICES - OTHER  - Resettlement,10207320 - NOMS CFO Round 3,ADVANCED PERSONNEL MANAGEMENT GROUP UK LIMITED,GBR11270,84894,Training and Further Education Courses
Ministry of Justice,HMPPS,2/27/2017,5224102030 - EXP - PURCHASE OF GOODS/SERVICES - OTHER - Translation / Interpreting Services,10207020 - Director PSP Front Line Centrally Managed,THEBIGWORD INTERPRETING SERVICES LTD,22,30298.94,Translation Services
Ministry of Justice,HMPPS,2/27/2017,5217100002 - EXP - PURCHASE OF GOODS/SERVICES - WATER,10200130 - Channings Wood,SOUTH WEST WATER LTD,7056388514,37386.43,Water and Sewage charges
Ministry of Justice,HMPPS,2/28/2017,5224102025 - EXP - SHORT-TERM CONTRACT & AGENCY STAFF - FULL COST - Specialist / Professional,10207962 - Strategic Support Administration and Assurance,THE POLICE AND CRIME COMMISSIONER FOR SOUTH WALES,3006859,125000,Agency Staff - Specialist contractors on fixed term contract
Ministry of Justice,HMPPS,2/28/2017,5218102012 - EXP - PURCHASE OF GOODS/SERVICES - ICT OUTSOURCING & MAINT./SUPPORT - Other,10207750 - Fix 'n' Go,ENTSERV UK LTD,6029695,154202.23,Contracted-out Computer Services
Ministry of Justice,HMPPS,2/28/2017,5215100003 - PPE - PLANT & MACHINERY (OWNED) - COST - ADDITIONS,10207490 - Security Group,MITECH CONSULTANTS,MI/204777-02,32773.64,Contracted-out Computer Services
Ministry of Justice,HMPPS,2/28/2017,5224102050 - EXP - PURCHASE OF GOODS/SERVICES - OTHER - Contracted out operation of prisons,10201280 - Parc,BRIDGEND CUSTODIAL SERVICES LTD,BE17111,243501.6,Contracted-out operation of prisons and detention centres
Ministry of Justice,HMPPS,2/28/2017,5224102050 - EXP - PURCHASE OF GOODS/SERVICES - OTHER - Contracted out operation of prisons,10201200 - Altcourse,FAZAKERLEY PRISON SERVICES LTD,FP17111,1380642,Contracted-out operation of prisons and detention centres
Ministry of Justice,HMPPS,2/28/2017,5224102050 - EXP - PURCHASE OF GOODS/SERVICES - OTHER - Contracted out operation of prisons,10201320 - Rye Hill,ONLEY PRISON SERVICES LTD,OP17111,923854.8,Contracted-out operation of prisons and detention centres
Ministry of Justice,HMPPS,2/28/2017,5215102038 - EXP - PURCHASE OF GOODS/SERVICES - OTHER  - Resettlement,10207320 - NOMS CFO Round 3,CAREER CONNECT,GSI103191,164802,Contracted-out Resettlement Services
Ministry of Justice,HMPPS,2/28/2017,5913102062 - EXP - PURCHASE OF GOODS/SERVICES - OTHER  - Resettlement,10207320 - NOMS CFO Round 3,SHAW TRUST,195279,88330.8,Contracted-out Resettlement Services
Ministry of Justice,HMPPS,2/28/2017,5224102192 - EXP - PURCHASE OF GOODS/SERVICES - OTHER  - Resettlement,10208350 - Psychology Services,GREGORY PSYCHOLOGICAL SERVICES LTD,1008,73000,Counselling & Advisory Costs
Ministry of Justice,HMPPS,2/28/2017,5217102006 - EXP - PURCHASE OF GOODS/SERVICES - OTHER  - Resettlement,10208350 - Psychology Services,GREGORY PSYCHOLOGICAL SERVICES LTD,1009,75400,Counselling & Advisory Costs
Ministry of Justice,HMPPS,2/28/2017,5215102038 - EXP - PURCHASE OF GOODS/SERVICES - ACCOMMODATION & BLDNG MANAGEMENT - FM - Soft Fixed Costs,10208080 - Estates Contract Management,CARILLION (AMBS) LIMITED,WPH201701A,27900,Maintenance work
Ministry of Justice,HMPPS,2/28/2017,5215102038 - EXP - PURCHASE OF GOODS/SERVICES - ACCOMMODATION & BLDNG MANAGEMENT - FM - Soft Fixed Costs,10208080 - Estates Contract Management,CARILLION (AMBS) LIMITED,WPH201702A,27900,Maintenance work
Ministry of Justice,HMPPS,2/28/2017,5215102038 - EXP - PURCHASE OF GOODS/SERVICES - ACCOMMODATION & BLDNG MANAGEMENT - FM - Soft Fixed Costs,10208080 - Estates Contract Management,CARILLION (AMBS) LIMITED,WPG201701A,27900,Maintenance work
Ministry of Justice,HMPPS,2/28/2017,5215102036 - EXP - PURCHASE OF GOODS/SERVICES - ACCOMMODATION & BLDNG MANAGEMENT - FM - Soft Fixed Costs,10208080 - Estates Contract Management,CARILLION (AMBS) LIMITED,WPG2017012A,27900,Maintenance work
Ministry of Justice,HMPPS,2/28/2017,5215102036 - EXP - PURCHASE OF GOODS/SERVICES - ACCOMMODATION & BLDNG MANAGEMENT - FM - Hard Fixed Costs,10208080 - Estates Contract Management,CARILLION (AMBS) LIMITED,WPH201701A,409014,Maintenance work
Ministry of Justice,HMPPS,2/28/2017,5215102036 - EXP - PURCHASE OF GOODS/SERVICES - ACCOMMODATION & BLDNG MANAGEMENT - FM - Hard Fixed Costs,10208080 - Estates Contract Management,CARILLION (AMBS) LIMITED,WPH201702A,409014,Maintenance work
Ministry of Justice,HMPPS,2/28/2017,5215102036 - EXP - PURCHASE OF GOODS/SERVICES - ACCOMMODATION & BLDNG MANAGEMENT - FM - Hard Fixed Costs,10208080 - Estates Contract Management,CARILLION (AMBS) LIMITED,WPG201701A,409014,Maintenance work
Ministry of Justice,HMPPS,2/28/2017,5215102008 - EXP - PURCHASE OF GOODS/SERVICES - ACCOMMODATION & BLDNG MANAGEMENT - FM - Hard Fixed Costs,10208080 - Estates Contract Management,CARILLION (AMBS) LIMITED,WPG2017012A,409014,Maintenance work
Ministry of Justice,HMPPS,2/28/2017,5215102008 - EXP - PURCHASE OF GOODS/SERVICES -ACCOMM & BLDNG MGMT -BLDNG MAINTENANCE & REPAIRS,10200080 - Brixton,MITIE FACILITIES SERVICES LTD,4.40839E+12,47247.5,Maintenance work
Ministry of Justice,HMPPS,2/28/2017,5215100003 - EXP - PURCHASE OF GOODS/SERVICES - ACCOMMODATION & BLDNG MANAGEMENT - Mechanical & Electrical Repair and Maintenance,10200080 - Brixton,MITIE FACILITIES SERVICES LTD,4.40839E+12,68544.05,Maintenance work
Ministry of Justice,HMPPS,2/28/2017,5224102028 - EXP - PURCHASE OF GOODS/SERVICES -ACCOMM & BLDNG MGMT -BLDNG MAINTENANCE & REPAIRS,10200080 - Brixton,MITIE FACILITIES SERVICES LTD,4.40839E+12,383283.74,Maintenance work
Ministry of Justice,HMPPS,2/28/2017,5224102025 - EXP - PURCHASE OF GOODS/SERVICES - OTHER - Prison Shop Cost of Sales,10207060 - Retail Project Charges,DHL SUPPLY CHAIN LTD,11156113,285303.43,Prison shop run through a national contract at no cost to taxpayer�
Ministry of Justice,HMPPS,2/28/2017,5224102187 - EXP - PURCHASE OF GOODS/SERVICES - OTHER - Prison Shop Cost of Sales,10207060 - Retail Project Charges,DHL SUPPLY CHAIN LTD,11156113,620674.97,Prison shop run through a national contract at no cost to taxpayer�
Ministry of Justice,HMPPS,2/28/2017,5913102040 - EXP - MISCELLANEOUS EXPENDITURE - Compensation payments - prisoner,10207020 - Director PSP Front Line Centrally Managed,GOVERNMENT LEGAL DEPARTMENT,Z1409025,40000,Prisoner Compensation
Ministry of Justice,HMPPS,2/28/2017,5215100003 - EXP - PURCHASE OF GOODS/SERVICES - ACCOMMODATION & BLDNG MANAGEMENT - Professional works advice/services,10200080 - Brixton,MITIE FACILITIES SERVICES LTD,4.40839E+12,39481.07,Professional works advice / services
Ministry of Justice,HMPPS,2/28/2017,5224102029 - Raw Materials - Soft Charged - Internal Market ,10207650 - PSP Industries HQ Manufacturing,CHARLES FELLOWS SUPPLIES LTD,IN84495,25800,Raw materials for prison industries
Ministry of Justice,HMPPS,2/28/2017,5224102029 - Raw Materials - Soft Charged - Internal Market ,10207650 - PSP Industries HQ Manufacturing,CHARLES FELLOWS SUPPLIES LTD,IN84494,38700,Raw materials for prison industries
Ministry of Justice,HMPPS,2/28/2017,5224102029 - Raw Materials - Soft Charged - Internal Market ,10207650 - PSP Industries HQ Manufacturing,CHARLES FELLOWS SUPPLIES LTD,IN84494,38700,Raw materials for prison industries
Ministry of Justice,HMPPS,2/28/2017,5224102183 - Raw Materials - Soft Charged - Internal Market ,10207650 - PSP Industries HQ Manufacturing,CHARLES FELLOWS SUPPLIES LTD,IN84494,38700,Raw materials for prison industries
Ministry of Justice,HMPPS,2/28/2017,5224102192 - EXP - PURCHASE OF GOODS/SERVICES - OTHER  - Resettlement,10207320 - NOMS CFO Round 3,ADVANCED PERSONNEL MANAGEMENT GROUP UK LIMITED,GBR11282,26148,Training and Further Education Courses
Ministry of Justice,HMPPS,2/28/2017,5224102192 - EXP - PURCHASE OF GOODS/SERVICES - OTHER  - Resettlement,10207320 - NOMS CFO Round 3,ADVANCED PERSONNEL MANAGEMENT GROUP UK LIMITED,GBR11276,46974,Training and Further Education Courses
Ministry of Justice,HMPPS,2/28/2017,5224102192 - EXP - PURCHASE OF GOODS/SERVICES - OTHER  - Resettlement,10207320 - NOMS CFO Round 3,ADVANCED PERSONNEL MANAGEMENT GROUP UK LIMITED,GBR11274,49080,Training and Further Education Courses
Ministry of Justice,HMPPS,2/28/2017,5224102192 - EXP - PURCHASE OF GOODS/SERVICES - OTHER  - Resettlement,10207320 - NOMS CFO Round 3,ADVANCED PERSONNEL MANAGEMENT GROUP UK LIMITED,GBR11280,57534,Training and Further Education Courses
Ministry of Justice,HMPPS,2/28/2017,5224102192 - EXP - PURCHASE OF GOODS/SERVICES - OTHER  - Resettlement,10207320 - NOMS CFO Round 3,ADVANCED PERSONNEL MANAGEMENT GROUP UK LIMITED,GBR11278,61368,Training and Further Education Courses
